fUSD/lending_fUSD_20250325
["ID","MTS","AMOUNT","RATE_DAILY","PERIOD"]
[356654488,1742919044517,-500.0,0.00034714,30]
[356654489,1742919044527,-451.42684254,0.00034714,30]
[356654490,1742919044536,-500.0,0.00034714,30]
[356654491,1742919044547,-500.0,0.00034714,30]
[356654492,1742919044559,-500.0,0.00034714,30]
[356654493,1742919044569,-499.06752232,0.00034714,30]
[356654494,1742919044579,-157.98057,0.00034714,30]
[356654495,1742919044588,-500.0,0.00034714,30]
[356654496,1742919044598,-566.1524894,0.00034849,120]
[356654497,1742919044608,-314.6,0.00034849,2]
[356654498,1742919044617,-1300.0,0.000349,12]
[356654499,1742919044627,-903.99,0.00034919,2]
[356654500,1742919044637,-151.0,0.00034929,7]
[356654501,1742919044647,-201.240727,0.00034929,7]
[356654502,1742919044656,-151.0,0.00034929,7]
[356654503,1742919044666,-151.0,0.00034929,7]
[356654504,1742919044675,-178.437023,0.00034929,7]
[356654505,1742919044687,-151.0,0.00034929,7]
[356654506,1742919044696,-205.37705864,0.00034953,7]
[356654507,1742919044706,-419.0,0.000351,2]
[356654508,1742919044715,-466.10567864,0.00035103,2]
[356654509,1742919044725,-356.0,0.0003515,2]
[356654510,1742919044735,-1646.492402,0.00035179,7]
[356654511,1742919044744,-1646.492402,0.00035179,7]
[356654512,1742919044754,-151.0,0.00035179,7]
[356654513,1742919044764,-151.0,0.00035179,7]
[356654514,1742919044773,-14392.61904743,0.0003518,2]
[356654515,1742919045463,-4242.80740197,0.0003518,2]
[356654519,1742919046061,-481.07253577,0.0003518,2]
[356654521,1742919046232,-2967.83717443,0.0003518,2]
[356654522,1742919046243,-151.0,0.0003519,7]
[356654523,1742919046252,-151.0,0.0003519,7]
[356654524,1742919046262,-151.0,0.0003519,7]
[356654525,1742919046272,-218.21422,0.0003519,7]
[356654526,1742919046282,-151.0,0.0003519,7]
[356654527,1742919046291,-583.0,0.00035199,5]
[356654528,1742919046300,-781.6,0.00035199,2]
[356654529,1742919046311,-781.6,0.00035199,2]
[356654530,1742919046320,-443.4,0.00035199,2]
[356654531,1742919046331,-443.4,0.00035199,2]
[356654532,1742919046341,-781.6,0.00035199,2]
[356654533,1742919046350,-781.6,0.00035199,2]
[356654534,1742919046359,-781.6,0.00035199,2]
[356654535,1742919046369,-443.4,0.00035199,2]
[356654536,1742919046379,-781.6,0.00035199,2]
[356654537,1742919046389,-443.4,0.00035199,2]
[356654538,1742919046399,-781.6,0.00035199,2]
[356654541,1742919046409,-443.4,0.00035199,2]
[356654543,1742919046418,-781.6,0.00035199,2]
[356654544,1742919046429,-443.4,0.00035199,2]
[356654546,1742919046438,-781.6,0.00035199,2]
[356654549,1742919046448,-443.4,0.00035199,2]
[356654550,1742919046458,-443.4,0.00035199,2]
[356654552,1742919046466,-781.6,0.00035199,2]
[356654554,1742919046476,-443.4,0.00035199,2]
[356654556,1742919046485,-781.6,0.00035199,2]
[356654558,1742919046494,-781.6,0.00035199,2]
[356654560,1742919046503,-443.4,0.00035199,2]
[356654562,1742919046512,-443.4,0.00035199,2]
[356654564,1742919046521,-781.6,0.00035199,2]
[356654566,1742919046531,-443.4,0.00035199,2]
[356654568,1742919046540,-174.84759667,0.00035199,2]
[356654570,1742919046557,-561.12240333,0.00035199,2]
[356654573,1742919046568,-443.4,0.00035199,2]
[356654575,1742919046578,-60.54282915,0.00035199,2]
[356654580,1742919046590,-382.85717085,0.00035199,2]
[356654583,1742919046599,-443.4,0.00035199,2]
[356654586,1742919046609,-443.4,0.00035199,2]
[356654589,1742919046618,-443.4,0.00035199,2]
[356654591,1742919046627,-443.4,0.00035199,2]
[356654593,1742919046638,-443.4,0.00035199,2]
[356654596,1742919046651,-443.4,0.00035199,2]
[356654598,1742919046663,-7963.92966948,0.00035208,2]
[356654607,1742919070776,2000.0,0.00031714,30]
[356654608,1742919073716,2000.0,0.00031714,30]
[356654609,1742919124298,182.9,0.00031714,30]
[356654611,1742919442253,258.26,0.00012001,2]
[356654613,1742919600159,300.0,0.00031714,120]
[356654617,1742919908542,821316.50007345,0.00012,2]
[356654619,1742919916601,500.0,0.00031714,120]
[356654621,1742920080489,372572.10747793,0.0001,2]
[356654638,1742920232253,-792.22238507,0.0002,4]
[356654639,1742920232307,-503.87693952,0.0002,4]
[356654640,1742920232317,-150.0,0.00022,2]
[356654641,1742920232326,-150.0,0.000225,2]
[356654642,1742920232336,-407.69377079,0.00023924,2]
[356654723,1742920238307,-238.30622921,0.00023924,2]
[356654724,1742920238318,-150.0,0.00025545,2]
[356654725,1742920238327,-188.72670731,0.00026849,2]
[356654726,1742920238416,-28.65329269,0.00026849,2]
[356654727,1742920238426,-426.47081625,0.00026924,2]
[356654728,1742920240314,-219.52918375,0.00026924,2]
[356654729,1742920240325,-263.0,0.000283,2]
[356654730,1742920240334,-263.0,0.000294,2]
[356654731,1742920240344,-316.35042302,0.00029924,2]
[356654732,1742920240356,-329.64957698,0.00029924,2]
[356654733,1742920240366,-263.0,0.0003049,2]
[356654734,1742920240376,-204.5996832,0.00031299,30]
[356654735,1742920240423,-75.4003168,0.00031299,30]
[356654736,1742920240433,-300.0,0.00031299,2]
[356654737,1742920240442,-500.0,0.000313,2]
[356654738,1742920240452,-447.02426444,0.000313,2]
[356654739,1742920240463,-52.97573556,0.000313,2]
[356654740,1742920240473,-500.0,0.000313,2]
[356654741,1742920240482,-500.0,0.000313,2]
[356654742,1742920240492,-900.0,0.000313,2]
[356654743,1742920240501,-234.25447532,0.000313,28]
[356654763,1742920244026,-543.1741128,0.000313,28]
[356654764,1742920244733,-476.65201662,0.000313,28]
[356654766,1742920246273,-70.24239526,0.000313,28]
[356654767,1742920246283,-159.018,0.000313,28]
[356654768,1742920246293,-600.86929527,0.00031428,2]
[356654769,1742920246305,-6790.23692,0.00031428,2]
[356654770,1742920246333,-327.983998,0.00031428,2]
[356654771,1742920246345,-832.4585784,0.00031428,2]
[356654772,1742920246548,-766.24272863,0.00031428,2]
[356654776,1742920312459,50000.0,0.00031714,30]
[356654777,1742920323182,250.0,0.00011,2]
[356654778,1742920340193,50000.0,0.00031706,31]
[356654779,1742920351385,50000.0,0.00031706,32]
[356654780,1742920400715,500.0,0.00031706,120]
[356654781,1742920403947,50000.0,0.00031706,33]
[356654782,1742920407825,50000.0,0.00031706,34]
[356654785,1742920553760,500.0,0.00031706,120]
[356654788,1742920742279,210.69,0.00031708,120]
[356654793,1742921122440,-274.77666258,0.00025867,2]
[356654794,1742921161879,-150.0,0.00025867,2]
[356654795,1742921168188,-168.48,0.00025867,2]
[356654798,1742921223969,-151.33,0.00026849,2]
[356654799,1742921223992,-91.954924,0.00028453,2]
[356654800,1742921258776,5000.0,0.00031708,30]
[356654801,1742921324738,5503.13,0.00031708,30]
[356654806,1742921410729,-218.42002402,0.00025867,2]
[356654807,1742921420982,-63.19297598,0.00025867,2]
[356654808,1742921421005,-58.045076,0.00028453,2]
[356654809,1742921421029,-28.76194802,0.00028613,2]
[356654817,1742921431470,-121.23805198,0.00028613,2]
[356654818,1742921431479,-434.66918734,0.00030914,2]
[356654819,1742921431489,-331.81264,0.0003111,47]
[356654820,1742921431498,-164.58961521,0.00031186,2]
[356654821,1742921431509,-270.07957213,0.00031186,2]
[356654822,1742921431519,-150.0,0.00031298,2]
[356654823,1742921431528,-243.284924,0.0003149,2]
[356654824,1742921431539,-263.0,0.0003159,2]
[356654825,1742921431548,-873.63550387,0.000316,2]
[356654826,1742921431559,-878.0,0.000316,2]
[356654827,1742921431579,-248.36449613,0.000316,2]
[356654828,1742921431588,-1079.6,0.00031616,2]
[356654829,1742921431598,-1000.0,0.00031708,2]
[356654830,1742921431608,-1000.0,0.00031708,3]
[356654831,1742921431617,-1058.0,0.00031708,4]
[356654832,1742921431627,-11503.41,0.00031714,30]
[356654833,1742921431637,-932.67491319,0.00031746,12]
[356654834,1742921431646,-201.86162457,0.000319,6]
[356654835,1742921431655,-217.38,0.00032646,2]
[356654836,1742921431665,-263.0,0.0003268,2]
[356654837,1742921431675,-200.49977607,0.00032877,5]
[356654838,1742921431684,-300.0,0.00033144,2]
[356654839,1742921431694,-152.16,0.00033145,2]
[356654840,1742921431703,-150.0,0.00033145,2]
[356654841,1742921431714,-155.84,0.00033145,2]
[356654842,1742921431723,-346.39,0.00033145,2]
[356654843,1742921431733,-150.0,0.00033145,2]
[356654844,1742921431742,-150.0,0.00033145,2]
[356654845,1742921431752,-304.84,0.00033145,2]
[356654846,1742921431762,-442.75,0.00033145,2]
[356654847,1742921431771,-150.0,0.00033145,2]
[356654848,1742921431782,-346.39,0.00033145,2]
[356654849,1742921431792,-168.91,0.00033145,2]
[356654850,1742921431801,-150.0,0.00033145,2]
[356654851,1742921431811,-85.74740618,0.00033145,2]
[356654852,1742921431830,-260.64259382,0.00033145,2]
[356654853,1742921431839,-442.75,0.00033145,2]
[356654854,1742921431849,-150.0,0.00033145,2]
[356654855,1742921431860,-150.0,0.00033145,2]
[356654856,1742921431870,-150.0,0.00033145,2]
[356654857,1742921431879,-150.0,0.00033145,2]
[356654858,1742921431889,-150.0,0.00033145,2]
[356654859,1742921431898,-150.0,0.00033145,2]
[356654860,1742921431908,-442.75,0.00033145,2]
[356654861,1742921431917,-346.39,0.00033145,2]
[356654862,1742921431927,-150.0,0.00033145,2]
[356654863,1742921431936,-442.75,0.00033145,2]
[356654864,1742921431945,-150.0,0.00033145,2]
[356654865,1742921431955,-150.0,0.00033145,2]
[356654866,1742921431964,-150.0,0.00033145,2]
[356654867,1742921431973,-346.39,0.00033145,2]
[356654868,1742921431983,-150.0,0.00033145,2]
[356654869,1742921431992,-150.0,0.00033145,2]
[356654870,1742921432001,-690.19,0.00033145,2]
[356654871,1742921432011,-442.75,0.00033145,2]
[356654872,1742921432020,-150.0,0.00033145,2]
[356654873,1742921432029,-150.0,0.00033145,2]
[356654874,1742921432040,-442.75,0.00033145,2]
[356654875,1742921432049,-150.0,0.00033145,2]
[356654876,1742921432058,-150.0,0.00033145,2]
[356654877,1742921432067,-198.25,0.00033282,2]
[356654878,1742921432077,-886.8,0.00033382,2]
[356654879,1742921432086,-23900.0,0.00033391,2]
[356654880,1742921432095,-158.88,0.00033448,2]
[356654885,1742921432219,-279.08757617,0.00033453,5]
[356654887,1742921432233,-151.67315118,0.00033493,5]
[356654888,1742921432242,-197.13,0.000335,31]
[356654889,1742921432251,-197.13,0.000335,31]
[356654890,1742921432261,-197.13,0.000335,31]
[356654891,1742921432270,-197.13,0.000335,31]
[356654892,1742921432279,-197.13,0.000335,31]
[356654893,1742921432289,-197.13,0.000335,31]
[356654894,1742921432298,-197.13,0.000335,31]
[356654895,1742921432310,-197.13,0.000335,31]
[356654896,1742921432320,-197.13,0.000335,31]
[356654897,1742921432329,-197.13,0.000335,31]
[356654898,1742921432338,-197.13,0.000335,31]
[356654899,1742921432349,-197.13,0.000335,31]
[356654900,1742921432357,-151.0,0.00033595,2]
[356654901,1742921432367,-193.99035928,0.00033605,2]
[356654902,1742921432376,-331.81265,0.0003361,53]
[356654903,1742921432386,-1059.458,0.00033614,36]
[356654904,1742921432395,-166.382,0.00033614,36]
[356654905,1742921432404,-2751.0,0.00033722,120]
[356654906,1742921432414,-263.0,0.0003377,2]
[356654907,1742921432423,-250.0,0.00033798,2]
[356654908,1742921432432,-1079.6,0.0003388,2]
[356654909,1742921432441,-442.75,0.00033967,2]
[356654910,1742921432450,-150.0,0.00033967,2]
[356654911,1742921432459,-150.0,0.00033967,2]
[356654912,1742921432469,-442.75,0.00033967,2]
[356654913,1742921432478,-150.0,0.00033967,2]
[356654914,1742921432488,-150.0,0.00033967,2]
[356654915,1742921432497,-442.75,0.00033967,2]
[356654916,1742921432507,-442.75,0.00033967,2]
[356654917,1742921432516,-1078.0,0.00034,7]
[356654918,1742921432525,-181.36,0.00034006,120]
[356654919,1742921432536,-158.88,0.00034117,2]
[356654920,1742921432546,-275.75,0.00034134,2]
[356654921,1742921432555,-179.33,0.00034136,2]
[356654922,1742921432564,-812.1567999,0.00034151,4]
[356654923,1742921432574,-1000.0,0.00034151,2]
[356654924,1742921432583,-151.94,0.00034163,120]
[356654925,1742921432592,-246.10931674,0.000345,120]
[356654926,1742921432602,-207.15026375,0.00034504,5]
[356654927,1742921432612,-150.0,0.00034548,10]
[356654928,1742921432621,-350.0,0.00034571,3]
[356654929,1742921432631,-94.98570775,0.00034685,120]
[356654930,1742921432643,-129.60429225,0.00034685,120]
[356654931,1742921432652,-500.0,0.00034708,30]
[356654932,1742921432661,-158.88,0.00034786,2]
[356654933,1742921432670,-252.38,0.00034788,2]
[356654934,1742921432679,-263.0,0.0003487,2]
[356654935,1742921432689,-496.13570775,0.00035,15]
[356654936,1742921432708,-319.0,0.00035,15]
[356654937,1742921433254,-150.24,0.00035,15]
[356654949,1742921437351,-547.64500924,0.00035,15]
[356654956,1742921437404,-4319.565,0.00035,15]
[356654958,1742921437415,-8091.27880005,0.00035,15]
[356654960,1742921437425,-258.01756968,0.00035,120]
[356654962,1742921437435,-605.9759,0.00035063,2]
[356654964,1742921437444,-943.7893,0.00035163,2]
[356654965,1742921437453,-450.0,0.00035199,2]
[356654966,1742921437461,-165.88353543,0.00035213,5]
[356654967,1742921437470,-3550.3206811,0.00035215,2]
[356654968,1742921437479,-6664.20114364,0.00035215,2]
[356654969,1742921437510,-185.26174686,0.00035215,2]
[356654970,1742921437520,-314.6,0.00035507,2]
[356654971,1742921437530,-150.0,0.0003561,2]
[356654972,1742921437541,-150.0,0.0003561,2]
[356654973,1742921437551,-150.0,0.0003561,2]
[356654974,1742921437560,-150.0,0.0003561,2]
[356654975,1742921437570,-150.0,0.0003561,2]
[356654976,1742921437579,-150.0,0.0003561,2]
[356654977,1742921437588,-150.0,0.00035616,2]
[356654978,1742921437598,-150.0,0.00035767,120]
[356654979,1742921437608,-263.0,0.0003596,2]
[356654980,1742921437617,-331.81265,0.0003611,58]
[356654981,1742921437627,-176.90787939,0.00036144,2]
[356654982,1742921437638,-334.6459531,0.00036144,2]
[356655055,1742921439874,-0.04822328,0.00036144,2]
[356655057,1742921439886,-300.0,0.00036144,2]
[356655060,1742921439902,-267.99794423,0.00036144,2]
[356655062,1742921439911,-252.77959938,0.000362,2]
[356655064,1742921439922,-158.08040062,0.000362,2]
[356655066,1742921439931,-156.587,0.00036334,2]
[356655068,1742921439940,-150.0,0.00036432,2]
[356655070,1742921439950,-150.0,0.00036432,2]
[356655072,1742921439958,-178.9442992,0.00036548,2]
[356655132,1742921442506,-952.76764131,0.00036548,2]
[356655133,1742921442515,-150.0,0.00036554,2]
[356655134,1742921442529,-434.2257,0.000368,2]
[356655135,1742921442539,-416.95665869,0.000368,2]
[356655169,1742921445756,-1997.65054131,0.000368,2]
[356655170,1742921445766,-1889.3086,0.000368,2]
[356655171,1742921445777,-2129.57988561,0.000368,2]
[356655172,1742921445786,-500.0,0.000369,2]
[356655173,1742921445799,-1000.0,0.000369,2]
[356655174,1742921445810,-17194.2909,0.000369,2]
[356655176,1742921445821,-287.1227,0.000369,2]
[356655177,1742921445831,-12463.4235,0.000369,2]
[356655178,1742921445840,-10731.4906,0.000369,2]
[356655179,1742921445850,-583.30619091,0.000369,41]
[356655180,1742921445860,-2500.0,0.000369,2]
[356655182,1742921445870,-1000.0,0.000369,2]
[356655184,1742921445879,-150.53880039,0.00036973,5]
[356655186,1742921445888,-500.0,0.00036973,5]
[356655188,1742921445897,-7639.76,0.0003699,2]
[356655190,1742921445906,-151566.18099561,0.00037,2]
[356655192,1742921445915,-151.0,0.00037,7]
[356655193,1742921445924,-189.920121,0.00037,7]
[356655194,1742921445934,-151.0,0.00037,7]
[356655195,1742921445943,-151.0,0.00037,7]
[356655196,1742921445953,-151.0,0.00037,7]
[356655197,1742921445963,-151.0,0.00037,7]
[356655198,1742921445972,-151.0,0.00037,7]
[356655199,1742921445982,-151.0,0.00037,7]
[356655200,1742921445991,-151.0,0.00037,7]
[356655201,1742921446001,-666.14696,0.00037,7]
[356655202,1742921446010,-666.14696,0.00037,7]
[356655203,1742921446019,-263.0,0.0003706,2]
[356655204,1742921446028,-2110.280777,0.00037244,120]
[356655205,1742921446037,-554.493492,0.00037244,120]
[356655206,1742921446047,-21620.4802962,0.0003729,3]
[356655207,1742921446056,-197.13,0.000373,31]
[356655208,1742921446065,-197.13,0.000373,31]
[356655209,1742921446074,-197.13,0.000373,31]
[356655210,1742921446083,-197.13,0.000373,31]
[356655211,1742921446093,-197.13,0.000373,31]
[356655212,1742921446102,-197.13,0.000373,31]
[356655213,1742921446112,-197.13,0.000373,31]
[356655214,1742921446121,-197.13,0.000373,31]
[356655215,1742921446131,-197.13,0.000373,31]
[356655216,1742921446140,-197.13,0.000373,31]
[356655217,1742921446227,-197.13,0.000373,31]
[356655218,1742921446254,-197.13,0.000373,31]
[356655219,1742921446264,-197.13,0.000373,31]
[356655220,1742921446273,-197.13,0.000373,31]
[356655221,1742921446282,-197.13,0.000373,31]
[356655222,1742921446292,-197.13,0.000373,31]
[356655223,1742921446302,-197.13,0.000373,31]
[356655224,1742921446316,-197.13,0.000373,31]
[356655225,1742921446325,-197.13,0.000373,31]
[356655226,1742921446335,-197.13,0.000373,31]
[356655227,1742921446345,-197.13,0.000373,31]
[356655228,1742921446355,-197.13,0.000373,31]
[356655229,1742921446364,-197.13,0.000373,31]
[356655230,1742921446374,-197.13,0.000373,31]
[356655231,1742921446384,-150.0,0.00037491,2]
[356655232,1742921446393,-12054.39695801,0.000375,2]
[356655241,1742922125426,250.0,0.00011,2]
[356655243,1742922265377,150.0,0.00012001,2]
[356655244,1742922416136,-264.95204576,0.00026849,2]
[356655266,1742922631633,-28.88795424,0.00026849,2]
[356655267,1742922631646,-170.44,0.00030853,2]
[356655268,1742922631659,-2296.7547909,0.00031632,2]
[356655269,1742922631673,-279.72087737,0.00031632,2]
[356655270,1742922631700,-2881.34843173,0.00031632,2]
[356655271,1742922631712,-2394.79868853,0.00031732,2]
[356655487,1742922637629,-464.26545062,0.00031732,2]
[356655488,1742922637789,-506.7993321,0.00031732,2]
[356655491,1742922637800,-646.1770952,0.00031732,2]
[356655508,1742922639924,-1142.29943355,0.00031732,2]
[356655509,1742922639933,-3650.17727665,0.00031732,2]
[356655510,1742922639945,-507.84909986,0.00031732,2]
[356655511,1742922640298,-996.31362349,0.00031732,2]
[356655512,1742922640307,-5154.34,0.00031732,2]
[356655513,1742922640317,-5154.34,0.00031732,2]
[356655514,1742922640326,-1895.74923382,0.00031732,2]
[356655561,1742922645765,-1425.67566672,0.00031732,2]
[356655572,1742923509075,294369.2201486,0.00012,2]
[356655586,1742923622945,-250.01656051,0.00015,14]
[356656058,1742923660894,-155.76,0.00015,14]
[356656059,1742923680555,-166.66,0.00015,14]
[356656060,1742923681284,72523.7798514,0.0001,2]
[356656061,1742923681329,77854.47247749,0.0001,2]
[356656062,1742923691959,38783.65841064,9e-05,2]
[356656070,1742923796038,-157.91,0.00014925,2]
[356656092,1742923831811,-82.53414776,0.00014925,2]
[356656094,1742923831822,-150.0,0.00014963,2]
[356656095,1742923831832,-930.94409225,0.00015,14]
[356656097,1742923831847,-554.21870024,0.00015,14]
[356656099,1742923831868,-2557.61514897,0.00015,14]
[356656100,1742923831988,-702.01940231,0.00015,14]
[356656101,1742923831998,-103.69645992,0.00016418,2]
[356656102,1742923832152,-46.30354008,0.00016418,2]
[356656103,1742923832162,-150.0,0.000165,2]
[356656104,1742923832171,-201.86162449,0.000199,2]
[356656105,1742923832182,-792.22238507,0.0002,4]
[356656106,1742923832192,-201.86162449,0.00022213,3]
[356656107,1742923832201,-201.86162449,0.00024525,3]
[356656108,1742923832211,-201.86162449,0.00026838,4]
[356656109,1742923832220,-195.64,0.00026849,2]
[356656110,1742923832229,-772.272,0.00028447,2]
[356656111,1742923832239,-201.86162449,0.0002915,5]
[356656112,1742923832248,-170.42,0.00029437,2]
[356656113,1742923832257,-1984.901257,0.00030496,2]
[356656114,1742923832267,-545.32463116,0.0003125,30]
[356656115,1742923832276,-165.90632,0.0003141,48]
[356656116,1742923832286,-166.66,0.0003142,2]
[356656117,1742923832295,-646.0,0.00031447,2]
[356656118,1742923832304,-201.86162449,0.00031463,6]
[356656119,1742923832314,-1040.35301322,0.000315,15]
[356656214,1742923837696,-273.41075466,0.000315,15]
[356656215,1742923837863,-617.926309,0.000315,15]
[356656216,1742923837875,-2068.30992312,0.000315,15]
[356656217,1742923837885,-18198.39597738,0.00031709,2]
[356656218,1742923837894,-847.567,0.00031713,30]
[356656219,1742923837904,-166.383,0.00031713,30]
[356656220,1742923837914,-151.0,0.00031713,2]
[356656221,1742923837923,-150.0,0.00031731,2]
[356656222,1742923837933,-1832.91509946,0.00031732,2]
[356656223,1742923837942,-5154.34,0.00031732,2]
[356656224,1742923837952,-5154.34,0.00031732,2]
[356656225,1742923837961,-5154.34,0.00031732,2]
[356656226,1742923837970,-5154.34,0.00031732,2]
[356656227,1742923837979,-5154.34,0.00031732,2]
[356656228,1742923837988,-5154.34,0.00031732,2]
[356656229,1742923837998,-5154.34,0.00031732,2]
[356656230,1742923838007,-5154.34,0.00031732,2]
[356656231,1742923838016,-5154.34,0.00031732,2]
[356656232,1742923838025,-5154.34,0.00031732,2]
[356656233,1742923838034,-5154.34,0.00031732,2]
[356656234,1742923838043,-5154.34,0.00031732,2]
[356656235,1742923838052,-5154.34,0.00031732,2]
[356656236,1742923838061,-1050.65637338,0.00031732,2]
[356656419,1742923839910,-4103.68362662,0.00031732,2]
[356656421,1742923839920,-5154.39292538,0.00031732,2]
[356656423,1742923839930,-151.0,0.00031732,7]
[356656425,1742923839940,-151.0,0.00031732,7]
[356656427,1742923839949,-151.0,0.00031732,7]
[356656429,1742923839959,-599.532264,0.00031732,7]
[356656431,1742923839968,-599.532264,0.00031732,7]
[356656433,1742923839978,-151.0,0.00031732,7]
[356656435,1742923839988,-471.30156532,0.00031773,5]
[356656437,1742923839998,-154.8174527,0.00031773,5]
[356656439,1742923840008,-250.01656051,0.00031773,5]
[356656441,1742923840018,-165.80898872,0.00031773,5]
[356656443,1742923840028,-1009.19,0.00031838,2]
[356656445,1742923840038,-293.84,0.00032646,2]
[356656447,1742923840048,-195.64,0.00032646,2]
[356656449,1742923840058,-152.05,0.000335,31]
[356656451,1742923840068,-152.05,0.000335,31]
[356656453,1742923840079,-152.05,0.000335,31]
[356656455,1742923840088,-152.05,0.000335,31]
[356656456,1742923840099,-152.05,0.000335,31]
[356656458,1742923840112,-152.05,0.000335,31]
[356656459,1742923840123,-152.05,0.000335,31]
[356656460,1742923840134,-152.05,0.000335,31]
[356656461,1742923840144,-152.05,0.000335,31]
[356656462,1742923840155,-152.05,0.000335,31]
[356656463,1742923840165,-252.6,0.00033769,120]
[356656464,1742923840175,-151.94,0.00033772,120]
[356656465,1742923840297,-201.86162449,0.00033775,6]
[356656466,1742923840309,-165.90633,0.0003391,53]
[356656467,1742923840319,-150.0,0.00034019,2]
[356656468,1742923840328,-1009.19,0.00034102,2]
[356656469,1742923840338,-200.0,0.00034124,2]
[356656470,1742923840347,-177.94,0.00034147,2]
[356656471,1742923840356,-646.0,0.00034447,2]
[356656472,1742923840367,-156.587,0.00034452,2]
[356656473,1742923840376,-369.77,0.000356,2]
[356656474,1742923840385,-150.0,0.00035616,2]
[356656475,1742923840394,-731.12,0.00035752,2]
[356656477,1742923840404,-229.79,0.00035973,2]
[356656478,1742923840413,-1500.0,0.00035991,2]
[356656480,1742923840423,-201.86162449,0.00036087,7]
[356656483,1742923840432,-1009.19,0.00036366,2]
[356656485,1742923840442,-663.7226059,0.00036374,4]
[356656487,1742923840453,-165.90632,0.0003641,59]
[356656489,1742923840463,-1491.25,0.00036428,120]
[356656491,1742923840472,-1180.4038,0.00036455,2]
[356656493,1742923840481,-150.0,0.00036554,2]
[356656495,1742923840490,-306.86,0.00036575,2]
[356656497,1742923840500,-9005.72,0.0003658,2]
[356656499,1742923840509,-151.0,0.0003658,7]
[356656501,1742923840518,-151.0,0.0003658,7]
[356656503,1742923840528,-151.0,0.0003658,7]
[356656505,1742923840537,-599.532264,0.0003658,7]
[356656507,1742923840547,-599.532264,0.0003658,7]
[356656509,1742923840556,-151.0,0.0003658,7]
[356656511,1742923840566,-1233.92,0.00036582,2]
[356656513,1742923840576,-1916.62189704,0.00036629,2]
[356656515,1742923840585,-306.86,0.00036652,2]
[356656517,1742923840595,-647.63,0.00036671,2]
[356656519,1742923840605,-583.30619091,0.0003668,40]
[356656521,1742923840614,-168.48,0.00036685,2]
[356656523,1742923840623,-531.63,0.00036691,3]
[356656525,1742923840633,-235.0,0.00036694,2]
[356656527,1742923840642,-151.0,0.00036701,7]
[356656529,1742923840651,-151.0,0.00036701,7]
[356656531,1742923840662,-151.0,0.00036701,7]
[356656533,1742923840671,-151.0,0.00036701,7]
[356656535,1742923840680,-599.532264,0.00036701,7]
[356656537,1742923840689,-599.532264,0.00036701,7]
[356656539,1742923840699,-151.0,0.00036701,7]
[356656541,1742923840708,-23900.0,0.00036701,2]
[356656542,1742923840718,-306.86,0.00036729,2]
[356656543,1742923840727,-1852.42,0.0003673,2]
[356656544,1742923840736,-1000.0,0.00036743,2]
[356656545,1742923840746,-2092.28,0.00036748,2]
[356656546,1742923840755,-500.0,0.0003675,2]
[356656547,1742923840764,-500.0,0.0003675,2]
[356656548,1742923840774,-500.0,0.0003675,2]